fUST/lending_fUST_20240524
["ID","MTS","AMOUNT","RATE_DAILY","PERIOD"]
[327812211,1716499833808,-743.16,0.00024657,2]
[327812213,1716499833818,-500.0,0.00024657,2]
[327812215,1716499833827,-599.65482666,0.00024657,2]
[327812217,1716499833839,-531.16,0.00024657,2]
[327812219,1716499833849,-653.12,0.00024657,2]
[327812221,1716499833858,-500.0,0.00024657,2]
[327812223,1716499833867,-1279.27,0.00024657,2]
[327812225,1716499833877,-500.0,0.00024657,2]
[327812227,1716499833887,-500.0,0.00024657,2]
[327812229,1716499833896,-938.25,0.00024657,2]
[327812231,1716499833906,-1660.62,0.00024657,2]
[327812233,1716499833915,-500.0,0.00024657,2]
[327812235,1716499833925,-500.0,0.00024657,2]
[327812237,1716499833935,-500.0,0.00024657,2]
[327812239,1716499833943,-500.0,0.00024657,2]
[327812241,1716499833953,-500.0,0.00024657,2]
[327812243,1716499833962,-500.0,0.00024657,2]
[327812245,1716499833971,-549.75,0.00024657,2]
[327812247,1716499833981,-1005.28,0.00024657,2]
[327812248,1716499833990,-826.14,0.00024657,2]
[327812250,1716499834000,-1992.41,0.00024657,2]
[327812252,1716499834009,-1644.86,0.00024657,2]
[327812254,1716499834018,-500.0,0.00024657,2]
[327812256,1716499834027,-500.0,0.00024657,2]
[327812258,1716499834037,-173.43067797,0.00024657,2]
[327812260,1716499834046,-521.17383233,0.00024657,2]
[327812262,1716499834056,-500.0,0.00024657,2]
[327812264,1716499834065,-500.0,0.00024657,2]
[327812266,1716499834075,-332.3379561,0.00024657,2]
[327812268,1716499834093,-167.6620439,0.00024657,2]
[327812270,1716499834102,-1469.31652017,0.00024657,2]
[327812272,1716499834114,-397.04347983,0.00024657,2]
[327812274,1716499834123,-500.0,0.00024657,2]
[327812276,1716499834133,-1535.96,0.00024657,2]
[327812278,1716499834142,-500.0,0.00024657,2]
[327812280,1716499834151,-624.68,0.00024657,2]
[327812282,1716499834161,-500.0,0.00024657,2]
[327812284,1716499834171,-500.0,0.00024657,2]
[327812286,1716499834180,-866.55763095,0.00024657,2]
[327812799,1716499839255,-151.0,0.00022956,3]
[327812800,1716499839266,-1156.89236905,0.00024657,2]
[327812801,1716499839278,-500.0,0.00024657,2]
[327812802,1716499839289,-552.86084487,0.00024657,2]
[327812803,1716499839298,-500.0,0.00024657,2]
[327812804,1716499839309,-1381.55173608,0.00024657,2]
[327812805,1716499839322,-230.82826392,0.00024657,2]
[327812806,1716499839332,-500.0,0.00024657,2]
[327812807,1716499839345,-500.0,0.00024657,2]
[327812808,1716499839355,-726.23,0.00024657,2]
[327812809,1716499839365,-500.0,0.00024657,2]
[327812810,1716499839375,-2779.26,0.00024657,2]
[327812811,1716499839384,-3462.66,0.00024657,2]
[327812812,1716499839394,-1062.0,0.00024657,2]
[327812813,1716499839404,-500.0,0.00024657,2]
[327812814,1716499839414,-500.0,0.00024657,2]
[327812815,1716499839424,-500.0,0.00024657,2]
[327812816,1716499839433,-711.1,0.00024657,2]
[327812817,1716499839443,-500.0,0.00024657,2]
[327812818,1716499839454,-500.0,0.00024657,2]
[327812819,1716499839464,-500.0,0.00024657,2]
[327812820,1716499839474,-500.0,0.00024657,2]
[327812821,1716499839484,-1033.92,0.00024657,2]
[327812822,1716499839495,-250.52968677,0.00024657,2]
[327812823,1716499839506,-500.0,0.00024657,2]
[327812824,1716499839516,-2182.4,0.00024657,2]
[327812825,1716499839526,-500.0,0.00024657,2]
[327812826,1716499839536,-1112.72,0.00024657,2]
[327812827,1716499839546,-625.56,0.00024657,2]
[327812828,1716499839556,-572.55,0.00024657,2]
[327812829,1716499839566,-500.0,0.00024657,2]
[327812830,1716499839576,-500.0,0.00024657,2]
[327812831,1716499839585,-500.0,0.00024657,2]
[327812832,1716499839596,-500.0,0.00024657,2]
[327812833,1716499839607,-1122.11,0.00024657,2]
[327812834,1716499839616,-500.0,0.00024657,2]
[327812835,1716499839626,-789.45,0.00024657,2]
[327812836,1716499839635,-500.0,0.00024657,2]
[327812837,1716499839645,-500.0,0.00024657,2]
[327812838,1716499839655,-1282.41605636,0.00024657,2]
[327812839,1716499839668,-158.82394364,0.00024657,2]
[327812840,1716499839678,-500.0,0.00024657,2]
[327812841,1716499839688,-500.0,0.00024657,2]
[327812842,1716499839697,-571.92,0.00024657,2]
[327812843,1716499839707,-569.35093389,0.00024657,2]
[327812845,1716499839716,-85.96306581,0.00024657,2]
[327813263,1716499844223,-567.8914659,0.00024656,2]
[327813266,1716499844233,-500.0,0.00024656,2]
[327813269,1716499844243,-500.0,0.00024656,2]
[327813272,1716499844253,-500.0,0.00024656,2]
[327813275,1716499844262,-500.0,0.00024656,2]
[327813278,1716499844271,-500.0,0.00024656,2]
[327813280,1716499844281,-500.0,0.00024656,2]
[327813282,1716499844290,-500.0,0.00024656,2]
[327813284,1716499844300,-500.0,0.00024656,2]
[327813286,1716499844310,-500.0,0.00024656,2]
[327813288,1716499844320,-500.0,0.00024656,2]
[327813291,1716499844330,-500.0,0.00024656,2]
[327813293,1716499844339,-500.0,0.00024656,2]
[327813295,1716499844350,-500.0,0.00024656,2]
[327813297,1716499844359,-500.0,0.00024656,2]
[327813299,1716499844368,-500.0,0.00024656,2]
[327813301,1716499844377,-500.0,0.00024656,2]
[327813303,1716499844386,-500.0,0.00024656,2]
[327813305,1716499844396,-500.0,0.00024656,2]
[327813307,1716499844406,-500.0,0.00024656,2]
[327813309,1716499844415,-500.0,0.00024656,2]
[327813310,1716499844424,-419.71834806,0.00024656,2]
[327813312,1716499844434,-500.0,0.00024656,2]
[327813314,1716499844443,-500.0,0.00024656,2]
[327813316,1716499844452,-500.0,0.00024656,2]
[327813318,1716499844462,-500.0,0.00024656,2]
[327813320,1716499844471,-500.0,0.00024656,2]
[327813322,1716499844482,-500.0,0.00024656,2]
[327813324,1716499844491,-500.0,0.00024656,2]
[327813326,1716499844501,-414.03693419,0.00024657,2]
[327813328,1716499844512,-500.0,0.00024657,3]
[327813330,1716499844524,-500.0,0.00024657,4]
[327813332,1716499844534,-183.71143487,0.00024657,5]
[327813334,1716499844544,-3000.0,0.00024657,2]
[327813336,1716499844555,-500.0,0.00024657,2]
[327813338,1716499844565,-4614.96,0.00024657,2]
[327813340,1716499844577,-500.0,0.00024657,2]
[327813342,1716499844588,-500.0,0.00024657,2]
[327813345,1716499844601,-500.0,0.00024657,2]
[327813347,1716499844611,-500.0,0.00024657,2]
[327813349,1716499844621,-500.0,0.00024657,2]
[327813350,1716499844631,-500.0,0.00024657,2]
[327813353,1716499844641,-500.0,0.00024657,2]
[327813354,1716499844651,-500.0,0.00024657,2]
[327813356,1716499844661,-500.0,0.00024657,2]
[327813358,1716499844671,-500.0,0.00024657,2]
[327813360,1716499844683,-500.0,0.00024657,2]
[327813362,1716499844693,-500.0,0.00024657,2]
[327813365,1716499844705,-500.0,0.00024657,2]
[327813366,1716499844716,-500.0,0.00024657,2]
[327813369,1716499844727,-811.44,0.00024657,2]
[327813370,1716499844738,-500.0,0.00024657,2]
[327813372,1716499844752,-500.0,0.00024657,2]
[327813374,1716499844762,-500.0,0.00024657,2]
[327813376,1716499844771,-2174.91,0.00024657,2]
[327813378,1716499844781,-500.0,0.00024657,2]
[327813380,1716499844791,-727.9,0.00024657,2]
[327813382,1716499844801,-6706.26,0.00024657,2]
[327813384,1716499844811,-500.0,0.00024657,2]
[327813385,1716499844821,-828.97,0.00024657,2]
[327813388,1716499844834,-500.0,0.00024657,2]
[327813390,1716499844848,-500.0,0.00024657,2]
[327813391,1716499844858,-500.0,0.00024657,2]
[327813394,1716499844868,-500.0,0.00024657,2]
[327813396,1716499844879,-500.0,0.00024657,2]
[327813397,1716499844890,-500.0,0.00024657,2]
[327813399,1716499844900,-4141.99,0.00024657,2]
[327813401,1716499844909,-500.0,0.00024657,2]
[327813403,1716499844919,-5074.02,0.00024657,2]
[327813405,1716499844930,-500.0,0.00024657,2]
[327813408,1716499844941,-1359.63,0.00024657,2]
[327813410,1716499844951,-500.0,0.00024657,2]
[327813411,1716499844960,-500.0,0.00024657,2]
[327813413,1716499844970,-500.0,0.00024657,2]
[327813415,1716499844980,-1966.49,0.00024657,2]
[327813417,1716499844989,-547.97613513,0.00024657,2]
[327813420,1716499844999,-500.0,0.00024657,2]
[327813422,1716499845010,-500.0,0.00024657,2]
[327813424,1716499845019,-612.84,0.00024657,3]
[327813426,1716499845029,-500.0,0.00024657,2]
[327813428,1716499845039,-13451.29,0.00024657,2]
[327813430,1716499845049,-500.0,0.00024657,2]
[327813432,1716499845060,-500.0,0.00024657,2]
[327813434,1716499845070,-500.0,0.00024657,2]
[327813436,1716499845080,-1283.3,0.00024657,2]
[327813438,1716499845090,-500.0,0.00024657,2]
[327813440,1716499845101,-500.0,0.00024657,2]
[327813442,1716499845112,-500.0,0.00024657,2]
[327813444,1716499845122,-500.0,0.00024657,2]
[327813446,1716499845132,-1749.96,0.00024657,2]
[327813448,1716499845142,-7073.25,0.00024657,2]
[327813450,1716499845152,-500.0,0.00024657,2]
[327813452,1716499845163,-1899.68,0.00024657,2]
[327813454,1716499845173,-655.7,0.00024657,2]
[327813456,1716499845183,-1698.57,0.00024657,2]
[327813458,1716499845192,-13143.8,0.00024657,2]
[327813460,1716499845202,-500.0,0.00024657,2]
[327813462,1716499845211,-684.19,0.00024657,2]
[327813464,1716499845221,-2494.22,0.00024657,2]
[327813465,1716499845232,-500.0,0.00024657,2]
[327813466,1716499845242,-609.29,0.00024657,2]
[327813467,1716499845252,-2225.48,0.00024657,2]
[327813468,1716499845263,-500.0,0.00024657,2]
[327813469,1716499845273,-807.75,0.00024657,2]
[327813470,1716499845284,-500.0,0.00024657,2]
[327813471,1716499845294,-872.76,0.00024657,2]
[327813472,1716499845304,-442.19969221,0.00024657,2]
[327813473,1716499845319,-3376.32030779,0.00024657,2]
[327813474,1716499845331,-500.0,0.00024657,2]
[327813475,1716499845341,-500.0,0.00024657,2]
[327813476,1716499845353,-1256.35,0.00024657,2]
[327813477,1716499845363,-1098.07080965,0.00024657,2]
[327813479,1716499845377,-240.02919035,0.00024657,2]
[327813481,1716499845386,-500.0,0.00024657,2]
[327813483,1716499845396,-500.0,0.00024657,2]
[327813485,1716499845406,-295.6,0.00024657,2]
[327813487,1716499845416,-500.0,0.00024657,2]
[327813489,1716499845425,-500.0,0.00024657,2]
[327813490,1716499845436,-153.0,0.00024795,2]
[327813492,1716499845446,-153.0,0.00024795,2]
[327813495,1716499845456,-153.0,0.00024795,2]
[327813496,1716499845467,-153.0,0.00024795,2]
[327813497,1716499845477,-153.0,0.00024795,2]
[327813498,1716499845487,-6112.71092147,0.00024831,3]
[327813499,1716499845500,-1551.48034015,0.00024831,3]
[327813689,1716499847083,273.72171019,0.00020913,2]
[327813932,1716499849498,231.40855204,0.00020913,2]
[327814121,1716499851638,7420.87542079,0.00020913,2]
[327814172,1716499852118,307.68071387,0.00020913,2]
[327814222,1716499852600,387.09341113,0.00020913,2]
[327814271,1716499853260,316.15927372,0.00020913,2]
[327814477,1716499855307,190.73228019,0.00020913,2]
[327814567,1716499856662,156.56985226,0.00020913,2]
[327814570,1716499858970,225.94334971,0.00020913,2]
[327814571,1716499859590,200.0,0.00020913,2]
[327814573,1716499867194,155.20575259,0.00020913,2]
[327814581,1716499880168,3373.78266972,0.00020913,2]
[327814582,1716499880626,175.6616625,0.00020913,2]
[327814586,1716499949438,155.45791053,0.00020913,2]
[327814587,1716499949712,2119.95126665,0.00020913,2]
[327814596,1716500174369,150.93962415,0.00023907,30]
[327814597,1716500174447,150.93962415,0.00023429,120]
[327814668,1716500702280,150.92453773,0.00023145,30]
[327814669,1716500702349,150.92453773,0.00022683,120]
[327814671,1716500834138,-1017.22044952,0.0002,2]
[327814672,1716500834159,-5357.97137033,0.00020618,2]
[327814673,1716500842111,-3418.59648547,0.00020618,2]
[327814674,1716500842134,-835.85509789,0.00020912,2]
[327814675,1716500842155,-410.53349584,0.00020912,2]
[327814676,1716500842175,-155.36909116,0.00020912,2]
[327814677,1716500842198,-274.54948177,0.00020912,2]
[327814678,1716500842219,-239.37725093,0.00020912,2]
[327814679,1716500842238,-207.4409988,0.00020912,2]
[327814680,1716500842258,-302.42294018,0.00020912,2]
[327814681,1716500842278,-155.64325057,0.00020912,2]
[327814682,1716500842298,-1209.0297649,0.00020912,2]
[327814683,1716500842317,-455.62493126,0.00020912,2]
[327814684,1716500842339,-2467.58422736,0.00020912,2]
[327814685,1716500842360,-230.90684664,0.00020912,2]
[327814686,1716500842380,-154.93802479,0.00020912,2]
[327814687,1716500842400,-772.36964669,0.00020913,2]
[327814688,1716500842421,-1256.77598172,0.00020913,2]
[327814689,1716500842448,-688.40754361,0.00020913,2]
[327814690,1716500842468,-215.80606168,0.00020913,2]
[327814691,1716500842489,-309.87604958,0.00020913,2]
[327814692,1716500842510,-309.704664,0.00020913,2]
[327814693,1716500842530,-1165.46761032,0.00021,2]
[327814694,1716500842552,-157.911177,0.00021918,2]
[327814695,1716500842573,-159.73051569,0.00022,2]
[327814696,1716500842594,-157.911177,0.00022431,2]
[327814697,1716500842614,-164.55110296,0.00022557,2]
[327814698,1716500842635,-157.911177,0.00022944,2]
[327814699,1716500842656,-157.911177,0.00023456,2]
[327814700,1716500842677,-150.92453773,0.00023618,7]
[327814701,1716500842700,-153.0,0.00023836,2]
[327814702,1716500842721,-153.0,0.00023836,2]
[327814703,1716500842741,-157.911177,0.00023969,2]
[327814704,1716500842764,-150.92453773,0.000241,4]
[327814705,1716500842785,-578.562786,0.00024384,2]
[327814706,1716500842805,-153.0,0.00024384,2]
[327814707,1716500842824,-153.0,0.00024384,2]
[327814708,1716500842846,-241.13899432,0.00024456,2]
[327814709,1716500842868,-157.911177,0.00024482,2]
[327814710,1716500842887,-204.5866529,0.00024496,2]
[327814711,1716500842908,-204.5866529,0.00024496,2]
[327814712,1716500842928,-204.5866529,0.00024496,2]
[327814713,1716500842950,-204.5866529,0.00024496,2]
[327814714,1716500842971,-204.5866529,0.00024496,2]
[327814715,1716500842991,-409.1733058,0.00024496,2]
[327814716,1716500843012,-5225.48788401,0.0002453,2]
[327814717,1716500845175,-774.51211599,0.0002453,2]
[327814718,1716500845197,-153.26447981,0.00024556,2]
[327814719,1716500845217,-153.26447978,0.00024556,2]
[327814720,1716500845238,-153.26447978,0.00024557,2]
[327814721,1716500845259,-153.26447978,0.00024557,2]
[327814722,1716500845281,-153.26447978,0.00024557,2]
[327814723,1716500845304,-150.92453773,0.00024592,2]
[327814724,1716500845325,-153.36399959,0.00024655,2]
[327814725,1716500845348,-500.0,0.00024655,2]
[327814726,1716500845372,-500.0,0.00024655,2]
[327814727,1716500845395,-500.0,0.00024655,2]
[327814728,1716500845414,-500.0,0.00024655,2]
[327814729,1716500845433,-500.0,0.00024655,2]
[327814730,1716500845455,-500.0,0.00024655,2]
[327814731,1716500845478,-500.0,0.00024655,2]
[327814732,1716500845500,-500.0,0.00024655,2]
[327814733,1716500845522,-500.0,0.00024655,2]
[327814734,1716500845546,-500.0,0.00024655,2]
[327814735,1716500845569,-500.0,0.00024655,2]
[327814736,1716500845593,-500.0,0.00024655,2]
[327814737,1716500845616,-485.67389821,0.00024655,2]
[327814738,1716500845638,-500.0,0.00024655,2]
[327814739,1716500845660,-434.295496,0.00024655,2]
[327814740,1716500845681,-500.0,0.00024655,2]
[327814741,1716500845705,-513.0334957,0.00024655,2]
[327814742,1716500845724,-500.0,0.00024655,2]
[327814743,1716500845744,-500.0,0.00024655,2]
[327814744,1716500845766,-500.0,0.00024655,2]
[327814745,1716500845785,-500.0,0.00024655,2]
[327814746,1716500845805,-500.0,0.00024655,2]
[327814747,1716500845824,-500.0,0.00024655,2]
[327814748,1716500845846,-500.0,0.00024655,2]
[327814749,1716500845865,-500.0,0.00024655,2]
[327814750,1716500845885,-500.0,0.00024655,2]
[327814751,1716500845907,-500.0,0.00024655,2]
[327814752,1716500845925,-500.0,0.00024655,2]
[327814753,1716500845949,-500.0,0.00024655,2]
[327814754,1716500845968,-500.0,0.00024655,2]
[327814755,1716500845989,-500.0,0.00024655,2]
[327814756,1716500846012,-500.0,0.00024655,2]
[327814757,1716500846035,-500.0,0.00024655,2]
[327814758,1716500846059,-395.98547939,0.00024655,2]
[327814759,1716500847146,-104.01452061,0.00024655,2]
[327814760,1716500847167,-470.3838025,0.00024655,2]
[327814761,1716500847188,-500.0,0.00024655,2]
[327814762,1716500847215,-500.0,0.00024655,2]
[327814763,1716500847234,-500.0,0.00024655,2]
[327814764,1716500847256,-234.52460022,0.00024655,2]
[327814852,1716501033338,-55.88815473,0.00022555,2]
[327814860,1716501039805,-94.11184527,0.00022555,2]
[327814862,1716501039815,-1021.1477168,0.00023588,2]
[327814866,1716501040372,-17680.9001513,0.00023588,2]
[327814867,1716501040381,-204.5866529,0.000244,2]
[327814868,1716501040390,-153.0,0.000244,2]
[327814869,1716501040400,-204.5866529,0.000244,2]
[327814870,1716501040408,-153.0,0.000244,2]
[327814871,1716501040417,-306.0,0.000244,2]
[327814872,1716501040426,-409.1733058,0.00024496,2]
[327814873,1716501040435,-2000.0,0.00024557,2]
[327814874,1716501040445,-500.0,0.00024655,2]
[327814875,1716501040454,-500.0,0.00024655,2]
[327814876,1716501040463,-500.0,0.00024655,2]
[327814877,1716501040472,-500.0,0.00024655,2]
[327814878,1716501040481,-208.14595637,0.00024655,2]
[327814879,1716501040491,-500.0,0.00024655,2]
[327814880,1716501040499,-236.88207709,0.00024655,2]
[327814929,1716501042909,-263.11792291,0.00024655,2]
[327814931,1716501042919,-500.0,0.00024655,2]
[327814934,1716501042928,-500.0,0.00024655,2]
[327814937,1716501042938,-500.0,0.00024655,2]
[327814940,1716501042947,-500.0,0.00024655,2]
[327814943,1716501042958,-500.0,0.00024655,2]
[327814945,1716501042967,-366.12142865,0.00024655,2]
[327814946,1716501042976,-500.0,0.00024655,2]
[327814948,1716501042985,-500.0,0.00024655,2]
[327814949,1716501042994,-500.0,0.00024655,2]
[327814951,1716501043004,-313.70010963,0.00024655,2]
[327814953,1716501043013,-215.00081399,0.00024655,2]
[327814956,1716501043036,-38.35512829,0.00024655,2]
[327815075,1716501044766,-153.0,0.000244,2]
[327815077,1716501044776,-246.64405772,0.00024655,2]
[327815079,1716501044786,-500.0,0.00024655,2]
[327815081,1716501044795,-500.0,0.00024655,2]
[327815083,1716501044805,-500.0,0.00024655,2]
[327815085,1716501044814,-500.0,0.00024655,2]
[327815087,1716501044824,-500.0,0.00024655,2]
[327815089,1716501044833,-500.0,0.00024655,2]
[327815091,1716501044843,-500.0,0.00024655,2]
[327815093,1716501044853,-500.0,0.00024655,2]
[327815095,1716501044864,-500.0,0.00024655,2]
[327815097,1716501044874,-341.11514075,0.00024655,2]
[327815099,1716501044883,-500.0,0.00024655,2]
[327815101,1716501044893,-500.0,0.00024655,2]
[327815103,1716501044902,-500.0,0.00024655,2]
[327815105,1716501044912,-500.0,0.00024655,2]
[327815107,1716501044922,-500.0,0.00024655,2]
[327815109,1716501044932,-500.0,0.00024655,2]
[327815111,1716501044942,-500.0,0.00024655,2]
[327815113,1716501044952,-500.0,0.00024655,2]
[327815115,1716501044962,-200.0,0.00024655,2]
[327815117,1716501044972,-500.0,0.00024655,2]
[327815119,1716501044982,-500.0,0.00024655,2]
[327815121,1716501044992,-500.0,0.00024655,2]
[327815122,1716501045002,-3000.0,0.00024656,2]
[327815124,1716501045012,-3000.0,0.00024656,2]
[327815126,1716501045022,-3000.0,0.00024656,2]
[327815128,1716501045033,-3000.0,0.00024656,2]
[327815130,1716501045042,-3000.0,0.00024656,2]
[327815132,1716501045052,-36854.75735523,0.00024656,11]
[327815134,1716501045061,-38009.78307969,0.00024657,11]
[327815136,1716501045071,-391.07531227,0.00024657,2]
[327815138,1716501045082,-500.0,0.00024657,2]
[327815140,1716501045092,-500.0,0.00024657,2]
[327815159,1716501045271,-500.0,0.00024657,2]
[327815161,1716501045283,-500.0,0.00024657,2]
[327815163,1716501045293,-500.0,0.00024657,2]
[327815165,1716501045304,-500.0,0.00024657,2]
[327815167,1716501045314,-500.0,0.00024657,2]
[327815169,1716501045323,-500.0,0.00024657,2]
[327815171,1716501045334,-500.0,0.00024657,2]
[327815173,1716501045344,-508.64634203,0.00024657,2]
[327815175,1716501045354,-500.0,0.00024657,2]
[327815177,1716501045363,-500.0,0.00024657,2]
[327815179,1716501045373,-500.0,0.00024657,2]
[327815181,1716501045382,-500.0,0.00024657,2]
[327815183,1716501045392,-500.0,0.00024657,2]
[327815185,1716501045402,-500.0,0.00024657,2]
[327815187,1716501045411,-500.0,0.00024657,2]
[327815189,1716501045421,-500.0,0.00024657,2]
[327815191,1716501045430,-500.0,0.00024657,2]
[327815192,1716501045440,-398.84062833,0.00024657,2]
[327815194,1716501045450,-500.0,0.00024657,2]
[327815196,1716501045460,-500.0,0.00024657,2]
[327815198,1716501045470,-514.7984048,0.00024657,2]
[327815200,1716501045479,-500.0,0.00024657,2]
[327815201,1716501045488,-500.0,0.00024657,2]
[327815203,1716501045498,-500.0,0.00024657,2]
[327815205,1716501045508,-500.0,0.00024657,2]
[327815207,1716501045518,-500.0,0.00024657,2]
[327815209,1716501045528,-514.24,0.00024657,2]
[327815211,1716501045539,-500.0,0.00024657,2]
[327815213,1716501045549,-500.0,0.00024657,2]
[327815215,1716501045559,-500.0,0.00024657,2]
[327815217,1716501045570,-500.0,0.00024657,2]
[327815219,1716501045579,-500.0,0.00024657,2]
[327815221,1716501045589,-500.0,0.00024657,2]
[327815223,1716501045600,-500.0,0.00024657,2]
[327815225,1716501045610,-879.82,0.00024657,2]
[327815227,1716501045620,-500.0,0.00024657,2]
[327815229,1716501045630,-840.67,0.00024657,2]
[327815231,1716501045640,-500.0,0.00024657,2]
[327815233,1716501045649,-1561.59,0.00024657,2]
[327815235,1716501045659,-500.0,0.00024657,2]
[327815237,1716501045668,-500.0,0.00024657,2]
[327815239,1716501045678,-500.0,0.00024657,2]
[327815241,1716501045687,-500.0,0.00024657,2]
[327815243,1716501045697,-500.0,0.00024657,2]
[327815245,1716501045707,-500.0,0.00024657,2]
[327815247,1716501045716,-522.13,0.00024657,2]
[327815249,1716501045725,-500.0,0.00024657,2]
[327815251,1716501045734,-500.0,0.00024657,2]
[327815253,1716501045744,-500.0,0.00024657,2]
[327815255,1716501045755,-1148.04,0.00024657,2]
[327815257,1716501045764,-500.0,0.00024657,2]
[327815259,1716501045774,-1337.33,0.00024657,2]
[327815261,1716501045783,-500.0,0.00024657,2]
[327815262,1716501045792,-500.0,0.00024657,2]
[327815264,1716501045802,-500.0,0.00024657,2]
[327815267,1716501045811,-500.0,0.00024657,2]
[327815268,1716501045820,-500.0,0.00024657,2]
[327815270,1716501045830,-500.0,0.00024657,2]
[327815272,1716501045839,-500.0,0.00024657,2]
[327815274,1716501045848,-500.0,0.00024657,2]
[327815276,1716501045858,-500.0,0.00024657,2]
[327815278,1716501045868,-500.0,0.00024657,2]
[327815280,1716501045877,-500.0,0.00024657,2]
[327815282,1716501045887,-150.88975502,0.00024657,2]
[327815284,1716501045897,-500.0,0.00024657,2]
[327815286,1716501045906,-500.11593174,0.00024657,2]
[327815288,1716501045916,-500.0,0.00024657,2]
[327815290,1716501045926,-500.0,0.00024657,2]
[327815292,1716501045935,-500.0,0.00024657,2]
[327815294,1716501045945,-879.13,0.00024657,2]
[327815296,1716501045954,-500.0,0.00024657,2]
[327815298,1716501045963,-500.0,0.00024657,2]
[327815300,1716501045973,-528.84928713,0.00024657,2]
[327815302,1716501045983,-500.0,0.00024657,2]
[327815304,1716501045992,-444.38305529,0.00024657,2]
[327816445,1716501057789,408.12591118,0.00020913,2]
[327817196,1716501158659,150.89437394,0.00024936,30]
[327817197,1716501158889,150.89437394,0.00024437,120]
[327817199,1716501382231,150.89437394,0.00024412,30]
[327817200,1716501382311,150.89437394,0.00023924,120]
[327817203,1716501962907,150.8642222,0.00024842,30]
[327817204,1716501962979,150.8642222,0.00024345,120]
[327817205,1716502028145,-282.45275044,0.00022557,2]
[327817206,1716502028169,-34.86628956,0.00022616,2]
[327817207,1716502033146,-126.97212944,0.00022616,2]
[327817208,1716502033170,-3074.72448937,0.0002291,2]
[327817209,1716502146148,-188.30183362,0.00022245,2]
[327817210,1716502192999,150.8642222,0.00025207,30]
[327817211,1716502193076,150.8642222,0.00024703,120]
[327817730,1716502237372,155.00155002,0.00020913,2]
[327817825,1716502243811,-146.10538703,0.0002291,2]
[327817826,1716502243821,-151.0,0.00022975,3]
[327817827,1716502243832,-151.0,0.00023295,3]
[327817828,1716502243842,-151.0,0.00023616,3]
[327817829,1716502243853,-306.2533128,0.00023641,2]
[327817830,1716502243862,-291.561811,0.000237,2]
[327817831,1716502243873,-153.0,0.00023741,2]
[327817832,1716502243883,-153.0,0.00023741,2]
[327817833,1716502243894,-153.0,0.00023741,2]
[327817834,1716502243904,-153.0,0.00023741,2]
[327817835,1716502243914,-153.0,0.00023878,2]
[327817836,1716502243923,-204.5866529,0.00023878,2]
[327817837,1716502243933,-204.5866529,0.00023878,2]
[327817838,1716502243943,-153.0,0.00023878,2]
[327817839,1716502243954,-306.0,0.00023878,2]
[327817840,1716502243964,-204.5866529,0.00023878,2]
[327817841,1716502243976,-409.1733058,0.00023878,2]
[327817842,1716502243986,-151.0,0.00023936,5]
[327817843,1716502243996,-306.0,0.0002411,2]
[327817844,1716502244006,-290.7104788,0.0002411,2]
[327817845,1716502244016,-151.0,0.00024257,5]
[327817846,1716502244025,-153.0,0.00024329,2]